fUSD/lending_fUSD_20260610
["ID","MTS","AMOUNT","RATE_DAILY","PERIOD"]
[424704508,1781063497000,-822.16,0.00033614,120]
[424704509,1781063497000,-265.19,0.00033614,120]
[424704504,1781063497000,-783.0,0.00033545,9]
[424704511,1781063497000,-2530.52,0.00033614,120]
[424704510,1781063497000,-811.78,0.00033614,120]
[424704515,1781063497000,-18391.56,0.000337,2]
[424704514,1781063497000,-18391.56,0.000337,2]
[424704512,1781063497000,-2735.98,0.00033614,120]
[424704505,1781063497000,-1417.79851296,0.00033562,30]
[424704516,1781063497000,-55174.68,0.000337,2]
[424704513,1781063497000,-640.62,0.00033669,7]
[424704522,1781063497000,-2324.0,0.00033723,11]
[424704521,1781063497000,-5005.39611714,0.00033723,2]
[424704520,1781063497000,-160.0,0.0003372,11]
[424704519,1781063497000,-500.0,0.00033708,2]
[424704524,1781063497000,-950.0,0.00033725,2]
[424704517,1781063497000,-55174.68,0.000337,2]
[424704518,1781063497000,-375.25305365,0.00033701,60]
[424704526,1781063497000,-150.337364,0.00033736,2]
[424704525,1781063497000,-865.0,0.00033725,2]
[424704527,1781063497000,-183.05466938,0.00033757,120]
[424704581,1781063498000,-2000.0,0.00034048,2]
[424704596,1781063498000,-1145.33,0.00034122,30]
[424704582,1781063498000,-1246.2349,0.00034048,2]
[424704587,1781063498000,-332.24,0.00034082,120]
[424704585,1781063498000,-1005.44232,0.00034078,120]
[424704586,1781063498000,-783.0,0.00034079,9]
[424704584,1781063498000,-2324.0,0.00034074,11]
[424704589,1781063498000,-14187.717,0.000341,30]
[424704588,1781063498000,-201.32126961,0.000341,30]
[424704583,1781063498000,-1283.3343,0.00034048,2]
[424704600,1781063498000,-1466.35,0.00034169,2]
[424704591,1781063498000,-150.0,0.000341,2]
[424704593,1781063498000,-150.0,0.000341,2]
[424704594,1781063498000,-150.0,0.000341,2]
[424704598,1781063498000,-2500.0,0.00034153,2]
[424704592,1781063498000,-150.0,0.000341,2]
[424704597,1781063498000,-1839.9,0.0003413,120]
[424704590,1781063498000,-153.78975279,0.000341,30]
[424704595,1781063498000,-508.04,0.0003411,120]
[424704603,1781063498000,-182.600014,0.00034186,5]
[424704580,1781063498000,-10000.0,0.00034048,2]
[424704601,1781063498000,-1610.6,0.00034182,7]
[424704599,1781063498000,-160.0,0.00034157,11]
[424704576,1781063498000,-950.0,0.00034035,2]
[424704560,1781063498000,-18391.56,0.00034,2]
[424704577,1781063498000,-950.0,0.00034035,2]
[424704602,1781063498000,-179.97120457,0.00034186,2]
[424704556,1781063498000,-11242.7,0.000339,14]
[424704555,1781063498000,-1281.01,0.000339,30]
[424704559,1781063498000,-169.929416,0.00033997,14]
[424704557,1781063498000,-1181.52,0.000339,30]
[424704558,1781063498000,-5000.0,0.00033959,2]
[424704561,1781063498000,-185.56449502,0.00034,30]
[424704566,1781063498000,-2500.0,0.00034,35]
[424704565,1781063498000,-55174.68,0.00034,2]
[424704562,1781063498000,-18508.40247259,0.00034,2]
[424704579,1781063498000,-160.0,0.0003404,11]
[424704563,1781063498000,-49999.99999901,0.00034,2]
[424704567,1781063498000,-150.0,0.00034,120]
[424704568,1781063498000,-55174.68,0.00034,2]
[424704570,1781063498000,-608.571599,0.00034,120]
[424704569,1781063498000,-158.0,0.00034,120]
[424704571,1781063498000,-1000.0,0.00034,120]
[424704572,1781063498000,-750.0,0.00034,2]
[424704573,1781063498000,-355.16393234,0.00034019,120]
[424704574,1781063498000,-190.77311935,0.00034019,120]
[424704575,1781063498000,-281.27,0.00034027,120]
[424704578,1781063498000,-838.0,0.00034035,2]
[424704564,1781063498000,-18391.56,0.00034,2]
[424704604,1781063498000,-150.0,0.0003419,2]
[424704605,1781063498000,-2324.0,0.00034195,11]
[424704606,1781063498000,-500.0,0.00034246,120]
[424704634,1781063498000,-714.0,0.00034313,30]
[424704635,1781063498000,-2488.0,0.00034313,30]
[424704637,1781063498000,-835.0,0.00034313,30]
[424704639,1781063498000,-2186.0,0.00034313,30]
[424704636,1781063498000,-4559.0,0.00034313,30]
[424704638,1781063498000,-632.0,0.00034313,30]
[424704641,1781063498000,-684.0,0.00034313,30]
[424704640,1781063498000,-877.0,0.00034313,30]
[424704642,1781063498000,-3594.0,0.00034313,30]
[424704649,1781063498000,-2324.0,0.00034425,11]
[424704633,1781063498000,-891.0,0.00034307,30]
[424704650,1781063498000,-407.0,0.00034453,2]
[424704645,1781063498000,-1044.134182,0.00034378,120]
[424704651,1781063498000,-407.0,0.00034453,2]
[424704648,1781063498000,-332.24,0.00034411,120]
[424704646,1781063498000,-200.0,0.00034382,4]
[424704647,1781063498000,-2986.13068675,0.000344,120]
[424704652,1781063498000,-407.0,0.00034453,2]
[424704654,1781063498000,-150.0,0.00034453,2]
[424704653,1781063498000,-150.0,0.00034453,2]
[424704656,1781063498000,-500.0,0.00034453,2]
[424704655,1781063498000,-150.0,0.00034453,2]
[424704644,1781063498000,-2324.0,0.0003436,11]
[424704632,1781063498000,-729.0,0.00034307,30]
[424704643,1781063498000,-1778.77,0.00034351,2]
[424704627,1781063498000,-144044.2597425,0.00034307,2]
[424704610,1781063498000,-500.0,0.00034246,120]
[424704630,1781063498000,-1366.0,0.00034307,30]
[424704607,1781063498000,-500.0,0.00034246,120]
[424704609,1781063498000,-500.0,0.00034246,120]
[424704608,1781063498000,-500.0,0.00034246,120]
[424704611,1781063498000,-500.0,0.00034246,120]
[424704615,1781063498000,-600.0,0.00034247,120]
[424704617,1781063498000,-600.0,0.00034247,120]
[424704614,1781063498000,-1000.0,0.00034247,120]
[424704619,1781063498000,-157124.092278,0.00034265,2]
[424704613,1781063498000,-518.87459671,0.00034246,120]
[424704612,1781063498000,-500.0,0.00034246,120]
[424704621,1781063498000,-9086.9888859,0.00034307,2]
[424704624,1781063498000,-5163.4614455,0.00034307,2]
[424704618,1781063498000,-202.0,0.00034247,7]
[424704620,1781063498000,-302300.3175207,0.00034307,2]
[424704622,1781063498000,-3358.8871575,0.00034307,2]
[424704623,1781063498000,-39733.0775054,0.00034307,2]
[424704626,1781063498000,-2881.5279527,0.00034307,2]
[424704631,1781063498000,-379.0,0.00034307,30]
[424704625,1781063498000,-481778.6517856,0.00034307,2]
[424704629,1781063498000,-800.0,0.00034307,30]
[424704616,1781063498000,-600.0,0.00034247,120]
[424704628,1781063498000,-84220.8712505,0.00034307,2]
[424704694,1781063499000,-986.750637,0.00034678,120]
[424704690,1781063499000,-25000.0,0.00034657,10]
[424704691,1781063499000,-25000.0,0.00034666,10]
[424704692,1781063499000,-1048.43,0.0003467,9]
[424704684,1781063499000,-783.0,0.00034613,10]
[424704689,1781063499000,-25000.0,0.00034648,10]
[424704688,1781063499000,-381.0,0.00034648,30]
[424704683,1781063499000,-3864.74926308,0.00034602,2]
[424704695,1781063499000,-790.6,0.00034678,9]
[424704687,1781063499000,-250.0,0.00034648,30]
[424704693,1781063499000,-25000.0,0.00034675,10]
[424704707,1781063499000,-2255.01621,0.00034711,30]
[424704697,1781063499000,-160.0,0.0003468,11]
[424704700,1781063499000,-169.929416,0.00034698,14]
[424704698,1781063499000,-25000.0,0.00034683,10]
[424704699,1781063499000,-25000.0,0.00034692,10]
[424704701,1781063499000,-1281.01,0.000347,30]
[424704706,1781063499000,-25000.0,0.0003471,10]
[424704704,1781063499000,-200.0,0.00034701,60]
[424704703,1781063499000,-1181.52,0.000347,30]
[424704702,1781063499000,-11242.7,0.000347,14]
[424704705,1781063499000,-25000.0,0.00034701,10]
[424704679,1781063499000,-150.0,0.0003455,2]
[424704696,1781063499000,-160.0,0.0003468,11]
[424704682,1781063499000,-20863.16155904,0.00034596,2]
[424704661,1781063499000,-150.0,0.00034453,2]
[424704681,1781063499000,-161.3,0.0003459,30]
[424704660,1781063499000,-150.0,0.00034453,2]
[424704708,1781063499000,-25000.0,0.00034719,10]
[424704659,1781063499000,-150.0,0.00034453,2]
[424704658,1781063499000,-500.0,0.00034453,2]
[424704657,1781063499000,-500.0,0.00034453,2]
[424704662,1781063499000,-241.6875,0.00034462,2]
[424704666,1781063499000,-864.78058953,0.00034467,2]
[424704665,1781063499000,-693.39197629,0.00034467,2]
[424704664,1781063499000,-151.0,0.00034467,2]
[424704670,1781063499000,-400.0,0.000345,30]
[424704668,1781063499000,-433.0,0.0003449,10]
[424704678,1781063499000,-150.0,0.0003455,2]
[424704673,1781063499000,-1742.98,0.00034544,60]
[424704672,1781063499000,-1206.46,0.00034544,60]
[424704667,1781063499000,-160.0,0.00034477,11]
[424704669,1781063499000,-172.47838391,0.000345,120]
[424704671,1781063499000,-676.17,0.00034506,7]
[424704675,1781063499000,-83632.70475979,0.00034548,7]
[424704685,1781063499000,-1145.33,0.0003462,30]
[424704686,1781063499000,-25000.0,0.00034639,10]
[424704674,1781063499000,-555.71,0.00034544,60]
[424704677,1781063499000,-150.0,0.0003455,2]
[424704676,1781063499000,-150.0,0.0003455,2]
[424704680,1781063499000,-332.24,0.00034575,120]
[424704663,1781063499000,-17500.0,0.00034463,7]
[424704716,1781063499000,-453.2259641,0.00034745,2]
[424704760,1781063499000,-704.56878815,0.00034745,2]
[424704710,1781063499000,-25000.0,0.00034736,10]
[424704748,1781063499000,-400.61894946,0.00034745,2]
[424704741,1781063499000,-414.0139116,0.00034745,2]
[424704747,1781063499000,-403.5684619,0.00034745,2]
[424704743,1781063499000,-1098.47611129,0.00034745,2]
[424704738,1781063499000,-344.9541642,0.00034745,2]
[424704742,1781063499000,-595.91013097,0.00034745,2]
[424704740,1781063499000,-1803.09226918,0.00034745,2]
[424704746,1781063499000,-714.08073168,0.00034745,2]
[424704745,1781063499000,-606.42930461,0.00034745,2]
[424704751,1781063499000,-1098.47611129,0.00034745,2]
[424704752,1781063499000,-300.0,0.00034745,2]
[424704756,1781063499000,-301.45121282,0.00034745,2]
[424704757,1781063499000,-528.42659101,0.00034745,2]
[424704754,1781063499000,-867.19122642,0.00034745,2]
[424704750,1781063499000,-595.91013096,0.00034745,2]
[424704758,1781063499000,-1156.25496887,0.00034745,2]
[424704753,1781063499000,-808.57240629,0.00034745,2]
[424704755,1781063499000,-300.0,0.00034745,2]
[424704759,1781063499000,-401.93495053,0.00034745,2]
[424704761,1781063499000,-494.12524907,0.00034745,2]
[424704762,1781063499000,-658.83366566,0.00034745,2]
[424704763,1781063499000,-300.0,0.00034745,2]
[424704709,1781063499000,-25000.0,0.00034727,10]
[424704744,1781063499000,-300.0,0.00034745,2]
[424704739,1781063499000,-952.08748272,0.00034745,2]
[424704749,1781063499000,-459.94286555,0.00034745,2]
[424704737,1781063499000,-302.67634619,0.00034745,2]
[424704736,1781063499000,-971.25108112,0.00034745,2]
[424704712,1781063499000,-1734.52,0.00034742,2]
[424704717,1781063499000,-445.04609909,0.00034745,2]
[424704714,1781063499000,-794.54684162,0.00034745,2]
[424704711,1781063499000,-332.24,0.0003474,120]
[424704715,1781063499000,-512.76940842,0.00034745,2]
[424704719,1781063499000,-300.46421191,0.00034745,2]
[424704718,1781063499000,-300.0,0.00034745,2]
[424704722,1781063499000,-683.69254486,0.00034745,2]
[424704720,1781063499000,-317.3624945,0.00034745,2]
[424704721,1781063499000,-601.03075655,0.00034745,2]
[424704726,1781063499000,-512.76940842,0.00034745,2]
[424704713,1781063499000,-310.5104337,0.00034745,2]
[424704723,1781063499000,-604.30128558,0.00034745,2]
[424704725,1781063499000,-330.65119116,0.00034745,2]
[424704735,1781063499000,-535.56054874,0.00034745,2]
[424704733,1781063499000,-300.0,0.00034745,2]
[424704732,1781063499000,-453.2259641,0.00034745,2]
[424704731,1781063499000,-310.5104337,0.00034745,2]
[424704734,1781063499000,-366.15870399,0.00034745,2]
[424704728,1781063499000,-728.43831077,0.00034745,2]
[424704729,1781063499000,-952.08748271,0.00034745,2]
[424704727,1781063499000,-593.39479881,0.00034745,2]
[424704724,1781063499000,-445.04609909,0.00034745,2]
[424704730,1781063499000,-1803.09226918,0.00034745,2]
[424704802,1781063500000,-205.1545123,0.00034754,60]
[424704798,1781063500000,-500.0,0.00034754,60]
[424704796,1781063500000,-500.0,0.00034754,60]
[424704794,1781063500000,-500.0,0.00034754,60]
[424704797,1781063500000,-500.0,0.00034754,60]
[424704793,1781063500000,-621.9815659,0.00034754,60]
[424704800,1781063500000,-500.0,0.00034754,60]
[424704791,1781063500000,-500.0,0.00034754,60]
[424704795,1781063500000,-500.0,0.00034754,60]
[424704799,1781063500000,-500.0,0.00034754,60]
[424704801,1781063500000,-500.0,0.00034754,60]
[424704810,1781063500000,-500.0,0.00034754,60]
[424704803,1781063500000,-500.0,0.00034754,60]
[424704809,1781063500000,-500.0,0.00034754,60]
[424704806,1781063500000,-500.0,0.00034754,60]
[424704813,1781063500000,-500.0,0.00034754,60]
[424704812,1781063500000,-500.0,0.00034754,60]
[424704805,1781063500000,-500.0,0.00034754,60]
[424704808,1781063500000,-500.0,0.00034754,60]
[424704807,1781063500000,-644.9647662,0.00034754,60]
[424704811,1781063500000,-415.5207362,0.00034754,60]
[424704814,1781063500000,-500.0,0.00034754,60]
[424704792,1781063500000,-564.2706733,0.00034754,60]
[424704804,1781063500000,-500.0,0.00034754,60]
[424704787,1781063500000,-500.0,0.00034754,60]
[424704764,1781063500000,-300.0,0.00034745,2]
[424704785,1781063500000,-231.2619805,0.00034754,60]
[424704765,1781063500000,-300.03733876,0.00034745,2]
[424704815,1781063500000,-742.2832884,0.00034754,60]
[424704766,1781063500000,-300.0,0.00034745,2]
[424704768,1781063500000,-300.0,0.00034745,2]
[424704767,1781063500000,-300.0,0.00034745,2]
[424704770,1781063500000,-300.0,0.00034745,2]
[424704772,1781063500000,-300.0,0.00034745,2]
[424704779,1781063500000,-300.0,0.00034745,2]
[424704771,1781063500000,-300.0,0.00034745,2]
[424704774,1781063500000,-300.0,0.00034745,2]
[424704776,1781063500000,-300.0,0.00034745,2]
[424704778,1781063500000,-300.0,0.00034745,2]
[424704777,1781063500000,-300.0,0.00034745,2]
[424704780,1781063500000,-343.03031439,0.00034745,2]
[424704773,1781063500000,-300.0,0.00034745,2]
[424704775,1781063500000,-300.0,0.00034745,2]
[424704782,1781063500000,-25000.0,0.00034745,10]
[424704783,1781063500000,-4000.0,0.00034748,5]
[424704781,1781063500000,-300.0,0.00034745,2]
[424704786,1781063500000,-389.9761435,0.00034754,60]
[424704788,1781063500000,-500.0,0.00034754,60]
[424704790,1781063500000,-500.0,0.00034754,60]
[424704789,1781063500000,-544.9310508,0.00034754,60]
[424704784,1781063500000,-25000.0,0.00034754,10]
[424704821,1781063500000,-758.7339915,0.00034754,60]
[424704769,1781063500000,-300.0,0.00034745,2]
[424704817,1781063500000,-500.0,0.00034754,60]
[424704848,1781063500000,-545.36388868,0.0003479,14]
[424704847,1781063500000,-25000.0,0.00034789,10]
[424704850,1781063500000,-545.36388868,0.0003479,14]
[424704849,1781063500000,-545.36388868,0.0003479,14]
[424704852,1781063500000,-545.36388868,0.0003479,14]
[424704851,1781063500000,-545.36388868,0.0003479,14]
[424704855,1781063500000,-545.36388867,0.0003479,14]
[424704854,1781063500000,-545.36388868,0.0003479,14]
[424704856,1781063500000,-545.36388867,0.0003479,14]
[424704857,1781063500000,-545.36388867,0.0003479,14]
[424704859,1781063500000,-545.36388867,0.0003479,14]
[424704858,1781063500000,-545.36388867,0.0003479,14]
[424704864,1781063500000,-545.36388867,0.0003479,14]
[424704865,1781063500000,-545.36388867,0.0003479,14]
[424704860,1781063500000,-545.36388867,0.0003479,14]
[424704862,1781063500000,-545.36388867,0.0003479,14]
[424704861,1781063500000,-545.36388867,0.0003479,14]
[424704866,1781063500000,-545.36388867,0.0003479,14]
[424704863,1781063500000,-545.36388867,0.0003479,14]
[424704867,1781063500000,-545.36388867,0.0003479,14]
[424704868,1781063500000,-1500.0,0.00034795,2]
[424704869,1781063500000,-150.0,0.00034797,2]
[424704818,1781063500000,-500.0,0.00034754,60]
[424704846,1781063500000,-25000.0,0.0003478,10]
[424704841,1781063500000,-250.0,0.00034763,7]
[424704853,1781063500000,-545.36388868,0.0003479,14]
[424704842,1781063500000,-250.0,0.00034763,7]
[424704816,1781063500000,-221.2281804,0.00034754,60]
[424704824,1781063500000,-858.7886994,0.00034754,60]
[424704819,1781063500000,-500.0,0.00034754,60]
[424704820,1781063500000,-655.4794056,0.00034754,60]
[424704822,1781063500000,-801.8619403,0.00034754,60]
[424704823,1781063500000,-500.0,0.00034754,60]
[424704826,1781063500000,-500.0,0.00034754,60]
[424704825,1781063500000,-500.0,0.00034754,60]
[424704844,1781063500000,-25000.0,0.00034771,10]
[424704830,1781063500000,-500.0,0.00034754,60]
[424704832,1781063500000,-527.2016561,0.00034754,60]
[424704831,1781063500000,-500.0,0.00034754,60]
[424704828,1781063500000,-250.0,0.00034754,60]
[424704834,1781063500000,-500.0,0.00034754,60]
[424704838,1781063500000,-500.0,0.00034754,60]
[424704833,1781063500000,-500.0,0.00034754,60]
[424704845,1781063500000,-224944.15995728,0.00034777,30]
[424704843,1781063500000,-224503.18044446,0.00034765,120]
[424704839,1781063500000,-645.9483565,0.00034754,60]
[424704840,1781063500000,-25000.0,0.00034763,10]
[424704837,1781063500000,-500.0,0.00034754,60]
[424704836,1781063500000,-500.0,0.00034754,60]
[424704827,1781063500000,-970.2986015,0.00034754,60]
[424704829,1781063500000,-720.5823005,0.00034754,60]
[424704835,1781063500000,-500.0,0.00034754,60]
[424704875,1781063501000,-378.13809427,0.0003483,10]
[424704873,1781063501000,-726.0,0.0003483,30]
[424704872,1781063501000,-200.0,0.000348,13]
[424704876,1781063501000,-1000.0,0.00034831,2]
[424704877,1781063501000,-1743.32,0.00034831,2]
[424704878,1781063501000,-1371.65,0.00034831,2]
[424704870,1781063501000,-150.0,0.00034797,2]
[424704874,1781063501000,-519.02839217,0.0003483,10]
[424704871,1781063501000,-150.966,0.00034797,2]
[424704881,1781063501000,-187.54317402,0.00034831,30]
[424704879,1781063501000,-1097.33,0.00034831,2]
[424704891,1781063501000,-1500.0,0.000349,7]
[424704882,1781063501000,-1001.0,0.00034849,120]
[424704886,1781063501000,-284.44577556,0.00034879,30]
[424704885,1781063501000,-187.54317402,0.0003487,30]
[424704884,1781063501000,-500.0,0.00034869,30]
[424704883,1781063501000,-284.44577557,0.00034869,30]
[424704889,1781063501000,-152.3288,0.00034887,2]
[424704887,1781063501000,-500.0,0.00034879,30]
[424704888,1781063501000,-315.0,0.0003488,30]
[424704880,1781063501000,-1645.99,0.00034831,2]
[424704890,1781063501000,-5000.0,0.000349,120]
[424704892,1781063501000,-3447.67286462,0.00034908,2]
[424704893,1781063505000,2328.77,0.00030137,120]
[424704894,1781063594000,211.0,0.00030137,120]
[424704903,1781064410000,-40.35681982,0.00011642,2]
[424704901,1781064410000,-275.81291912,0.0001,2]
[424704902,1781064410000,-150.0,0.000108,2]
[424704915,1781064632000,-109.64318018,0.00011642,2]
[424704918,1781064632000,-830.38,0.00011813,2]
[424704917,1781064632000,-5507.48,0.00011765,2]
[424704912,1781064632000,-150.0,0.00010301,2]
[424704914,1781064632000,-3631.1574837,0.000114,2]
[424704913,1781064632000,-205.0,0.00010403,2]
[424704919,1781064632000,-2732.48,0.00011841,2]
[424704916,1781064632000,-181.74,0.00011723,2]
[424704923,1781064632000,-346.72006657,0.00012197,2]
[424704920,1781064632000,-198.21,0.00011866,2]
[424704922,1781064632000,-616.92537185,0.00012196,2]
[424704931,1781064632000,-500.0,0.00012725,2]
[424704924,1781064632000,-398.38973158,0.00012198,2]
[424704925,1781064632000,-725.9985378,0.00012198,2]
[424704927,1781064632000,-158.47,0.00012234,2]
[424704926,1781064632000,-160.0,0.00012218,2]
[424704928,1781064632000,-154.56,0.00012294,2]
[424704930,1781064632000,-200.0,0.00012362,2]
[424704929,1781064632000,-1000.0,0.00012305,2]
[424704921,1781064632000,-150.0,0.00012002,2]
[424704932,1781064633000,-2000.0,0.00012815,2]
[424704933,1781064633000,-181.74,0.00012896,2]
[424704934,1781064633000,-2500.0,0.00012898,2]
[424704935,1781064633000,-5874.96493688,0.00012898,2]
[424704937,1781064633000,-450.53195804,0.00012898,2]
[424704936,1781064633000,-10893.1505,0.00012898,2]
[424704938,1781064633000,-1668.97568377,0.00012898,2]
[424704940,1781064633000,-150470.45470259,0.00012898,2]
[424704942,1781064633000,-792.77143306,0.00012898,2]
[424704941,1781064633000,-16378.87296031,0.00012898,2]
[424704939,1781064633000,-46444.20176832,0.00012898,2]
[424704962,1781064638000,-250.0,0.00012997,2]
[424704952,1781064638000,-150.0,0.00012996,2]
[424704961,1781064638000,-2000.0,0.00012997,2]
[424704958,1781064638000,-500.0,0.00012997,2]
[424704956,1781064638000,-500.0,0.00012997,2]
[424704957,1781064638000,-500.0,0.00012997,2]
[424704954,1781064638000,-3684.057,0.00012997,2]
[424704955,1781064638000,-500.0,0.00012997,2]
[424704953,1781064638000,-258.647,0.00012997,2]
[424704964,1781064638000,-4068.52780647,0.00013012,2]
[424704949,1781064638000,-191.26687174,0.00012912,2]
[424704950,1781064638000,-915.81,0.00012987,2]
[424704948,1781064638000,-535.6439242,0.00012912,2]
[424704947,1781064638000,-1266612.56442841,0.00012898,2]
[424704945,1781064638000,-215.92376884,0.0001286,2]
[424704946,1781064638000,-413.51162862,0.00012898,2]
[424704944,1781064638000,-74.35547163,0.00012812,2]
[424704943,1781064638000,-870.6563623,0.00012812,2]
[424704959,1781064638000,-500.0,0.00012997,2]
[424704951,1781064638000,-1623.19,0.00012987,2]
[424704960,1781064638000,-500.0,0.00012997,2]
[424704978,1781064638000,-310.78620482,0.00013809,2]
[424704965,1781064638000,-500.0,0.00013112,2]
[424704986,1781064638000,-4386.225579,0.00014651,2]
[424704963,1781064638000,-2000.0,0.00012998,2]
[424704984,1781064638000,-166.66,0.00014606,2]
[424704983,1781064638000,-310.78620482,0.0001443,2]
[424704981,1781064638000,-166.66,0.00014327,2]
[424704979,1781064638000,-250.0,0.00014,2]
[424704982,1781064638000,-2000.0,0.00014417,2]
[424704980,1781064638000,-166.66,0.00014049,2]
[424704977,1781064638000,-166.66,0.00013771,2]
[424704974,1781064638000,-166.66,0.00013493,2]
[424704985,1781064638000,-1096.564396,0.00014651,2]
[424704972,1781064638000,-446.0,0.00013397,2]
[424704975,1781064638000,-200.0,0.00013699,2]
[424704967,1781064638000,-166.66,0.00013215,2]
[424704970,1781064638000,-541.3104,0.00013386,2]
[424704969,1781064638000,-721.46,0.0001326,2]
[424704966,1781064638000,-760.49,0.00013112,2]
[424704971,1781064638000,-450.0,0.00013397,2]
[424704968,1781064638000,-349.55,0.0001326,2]
[424704973,1781064638000,-310.78620482,0.0001343,2]
[424705017,1781064639000,-2000.0,0.00019223,2]
[424705011,1781064639000,-1214.0,0.00017927,2]
[424705014,1781064639000,-1798.80895522,0.00018129,2]
[424705013,1781064639000,-350.0,0.00018,2]
[424705015,1781064639000,-268.4,0.0001841,2]
[424705012,1781064639000,-3661.361,0.00017927,2]
[424705009,1781064639000,-4068.52780645,0.00017876,2]
[424705018,1781064639000,-1934.38338736,0.00019225,2]
[424705019,1781064639000,-2005.9555727,0.00019773,2]
[424705024,1781064639000,-874.0,0.0002,2]
[424705020,1781064639000,-155.00813864,0.00019947,2]
[424705022,1781064639000,-334.0,0.0002,2]
[424705029,1781064639000,-546.0,0.0002,2]
[424705028,1781064639000,-320.0,0.0002,2]
[424705027,1781064639000,-1437.0,0.0002,2]
[424705025,1781064639000,-350.0,0.0002,2]
[424705026,1781064639000,-273.0,0.0002,2]
[424705023,1781064639000,-252.0,0.0002,2]
[424705010,1781064639000,-6075.0,0.00017927,2]
[424705021,1781064639000,-157.984708,0.0002,2]
[424705007,1781064639000,-1734.62772924,0.00017581,2]
[424705016,1781064639000,-1865.36488656,0.00018677,2]
[424705004,1781064639000,-535.64392414,0.00016673,2]
[424705032,1781064639000,-291.0,0.0002,2]
[424704987,1781064639000,-10000.0,0.00014816,2]
[424704988,1781064639000,-329.99730238,0.00014844,2]
[424704991,1781064639000,-442.0,0.00015,2]
[424704994,1781064639000,-1500.0,0.00015389,2]
[424704992,1781064639000,-444.0,0.00015,2]
[424704989,1781064639000,-500.0,0.0001488,2]
[424704993,1781064639000,-453.0,0.00015,2]
[424704990,1781064639000,-2000.0,0.0001488,2]
[424705001,1781064639000,-830.38,0.00016538,2]
[424704995,1781064639000,-4068.52780645,0.00015444,2]
[424704999,1781064639000,-268.4,0.00016438,2]
[424704997,1781064639000,-300.0,0.00016,2]
[424704998,1781064639000,-2000.0,0.00016019,2]
[424705000,1781064639000,-1613.0535,0.00016485,2]
[424705002,1781064639000,-1267.7971,0.000166,2]
[424705006,1781064639000,-1672.7364795,0.00017033,2]
[424705005,1781064639000,-5734.03,0.00016922,2]
[424705008,1781064639000,-2000.0,0.00017621,2]
[424705003,1781064639000,-268.60122826,0.00016617,2]
[424704996,1781064639000,-1555.5,0.00015937,2]
[424705030,1781064639000,-151.0,0.0002,2]
[424705031,1781064639000,-400.0,0.0002,2]
[424705034,1781064639000,-15651.12,0.0002,2]
[424705057,1781064639000,-1280.88388877,0.00020321,2]
[424705059,1781064639000,-1328.27659266,0.00020321,2]
[424705058,1781064639000,-151.0,0.00020321,2]
[424705060,1781064639000,-151.0,0.00020321,2]
[424705063,1781064639000,-151.0,0.00020321,2]
[424705062,1781064639000,-1428.38747117,0.00020321,2]
[424705064,1781064639000,-1481.2378076,0.00020321,2]
[424705066,1781064639000,-1536.04360648,0.00020321,2]
[424705065,1781064639000,-151.0,0.00020321,2]
[424705056,1781064639000,-151.0,0.00020321,2]
[424705068,1781064639000,-1592.87721992,0.00020321,2]
[424705070,1781064639000,-151.0,0.00020321,2]
[424705074,1781064639000,-1776.30922209,0.00020321,2]
[424705069,1781064639000,-1651.81367706,0.00020321,2]
[424705073,1781064639000,-151.0,0.00020321,2]